bitfinex-derivatives/quotes_ETHF0:USTF0_20250504
["timestamp","ask_amount","ask_price","bid_price","bid_amount"]
[1746343080852,1.08349,1845.6,1845.5,1.7294]
[1746343081062,4.77149,1845.6,1845.5,1.7294]
[1746343086066,1.08355,1845.5,1845.4,1.08359]
[1746343086266,3.53755,1845.5,1845.3,4.34493]
[1746343086460,3.53755,1845.5,1845.4,1.6384]
[1746343087267,7.22555,1845.5,1845.4,1.6384]
[1746343087568,7.22555,1845.5,1845.4,2.72201]
[1746343089470,7.22555,1845.5,1845.4,1.6384]
[1746343096377,1.08361,1845.4,1845.3,0.7944]
[1746343096675,2.68551,1845.4,1845.3,0.7944]
[1746343097076,6.37351,1845.4,1845.3,0.7944]
[1746343097272,6.37351,1845.4,1845.3,2.4447]
[1746343103083,6.37351,1845.4,1845.3,1.6503]
[1746343104479,6.37351,1845.4,1845.3,2.73397]
[1746343104785,6.37351,1845.4,1845.3,1.6503]
[1746343104982,6.37351,1845.4,1845.3,2.73397]
[1746343105481,5.2899,1845.4,1845.3,2.73397]
[1746343106683,6.37351,1845.4,1845.3,2.73397]
[1746343109384,6.37351,1845.4,1845.3,1.6503]
[1746343110383,6.37351,1845.4,1845.3,2.73397]
[1746343110885,6.37351,1845.4,1845.3,1.6503]
[1746343111188,1.08367,1845.3,1845.2,3.43]
[1746343111487,3.53897,1845.3,1845.2,3.43]
[1746343111983,3.53897,1845.3,1845.1,6.71953]
[1746343111984,1.08373,1845.2,1845.1,2.67393]
[1746343112184,7.24493,1845.2,1845.1,2.67393]
[1746343112383,1.08378,1845.1,1845.0,1.08384]
[1746343112585,2.71418,1845.1,1845.0,1.08384]
[1746343113181,6.40218,1845.1,1845.0,1.08384]
[1746343113381,5.3184,1845.1,1845.0,1.08384]
[1746343113581,3.688,1845.1,1845.0,2.73774]
[1746343118085,4.77178,1845.1,1845.0,2.73774]
[1746343118391,6.38738,1845.1,1845.0,2.73774]
[1746343119192,6.38738,1845.1,1845.0,1.6539]
[1746343120189,6.38738,1845.1,1845.0,2.73774]
[1746343120686,6.38738,1845.1,1845.0,1.6539]
[1746343122283,1.08384,1845.0,1844.9,9.36925]
[1746343122491,2.80024,1845.0,1844.9,4.52285]
[1746343122687,2.80024,1845.0,1844.9,3.439]
[1746343122890,1.0839,1844.9,1844.8,1.6534]
[1746343123089,4.4487,1844.9,1844.8,1.6534]
[1746343123893,3.3648,1844.9,1844.8,2.73736]
[1746343124092,8.1367,1844.9,1844.8,2.73736]
[1746343124295,8.1367,1844.9,1844.8,1.6534]
[1746343124486,8.1367,1844.9,1844.8,2.73736]
[1746343125592,8.1367,1844.9,1844.8,1.6534]
[1746343125791,1.08396,1844.8,1844.7,4.0172]
[1746343125985,2.71526,1844.8,1844.7,5.7074]
[1746343126186,2.71526,1844.8,1844.7,1.6902]
[1746343126187,6.40326,1844.8,1844.7,1.6902]
[1746343129298,6.40326,1844.8,1844.6,4.51707]
[1746343129491,6.40326,1844.8,1844.6,6.15757]
[1746343129794,1.08402,1844.7,1844.6,6.15757]
[1746343130095,1.08402,1844.7,1844.6,2.72457]
[1746343130297,6.40331,1844.8,1844.6,2.72457]
[1746343130595,6.40331,1844.8,1844.7,1.6405]
[1746343133104,1.08405,1844.7,1844.5,5.9221]
[1746343133406,2.78515,1844.7,1844.5,5.9221]
[1746343133706,2.78515,1844.7,1844.6,1.643]
[1746343134204,6.47315,1844.7,1844.6,1.643]
[1746343138507,6.47315,1844.7,1844.6,2.72708]
[1746343139000,4.77205,1844.7,1844.6,2.72708]
[1746343140911,3.688,1844.7,1844.6,2.72708]
[1746343141107,4.77202,1844.7,1844.6,2.72708]
[1746343141512,3.688,1844.7,1844.6,2.72708]
[1746343143814,3.688,1844.7,1844.6,1.643]
[1746343144117,1.08414,1844.5,1844.4,0.7971]
[1746343144416,1.08414,1844.5,1844.4,3.5997]
[1746343144616,1.08414,1844.5,1844.4,2.5155]
[1746343144806,2.65474,1844.5,1844.4,2.5155]
[1746343145117,2.65474,1844.5,1844.4,3.5997]
[1746343145320,6.34274,1844.5,1844.4,2.5155]
[1746343146016,7.20714,1844.5,1844.4,2.5155]
[1746343147218,7.20714,1844.5,1844.4,1.7184]
[1746343147422,6.123,1844.5,1844.2,4.0266]
[1746343147716,1.08425,1844.3,1844.2,1.90311]
[1746343148118,4.77225,1844.3,1844.2,1.90311]
[1746343148318,5.63215,1844.3,1844.2,1.90311]
[1746343148819,1.08443,1844.0,1843.9,10.81323948]
[1746343149011,1.08443,1844.0,1843.9,9.58293948]
[1746343149012,7.72523,1844.0,1843.9,9.58293948]
[1746343149217,16.41323,1844.0,1843.9,6.28443948]
[1746343149412,16.41323,1844.0,1843.5,1e-07]
[1746343149413,1.08467,1843.6,1843.5,1e-07]
[1746343149607,4.29247,1843.6,1843.5,1e-07]
[1746343150317,7.98047,1843.6,1843.5,1e-07]
[1746343150820,9.58317,1843.6,1843.5,1e-07]
[1746343155124,9.58317,1843.6,1843.4,1.6602]
[1746343155125,1.08473,1843.5,1843.4,1.6602]
[1746343156116,4.77273,1843.5,1843.4,1.6602]
[1746343158116,3.688,1843.5,1843.1,3.2078]
[1746343158321,1.08488,1843.3,1843.2,1.7003]
[1746343159015,3.50078,1843.3,1843.2,1.7003]
[1746343159218,3.50078,1843.3,1843.2,5.3883]
[1746343159421,2.4159,1843.3,1843.2,6.4732]
[1746343159726,2.01292517,1843.4,1843.2,6.4732]
[1746343159925,2.01292517,1843.4,1843.3,1.5805]
[1746343160122,1.90443,1843.4,1843.3,1.5805]
[1746343161019,3.47113,1843.4,1843.3,1.5805]
[1746343161923,2.3863,1843.4,1843.3,1.5805]
[1746343162119,3.47108,1843.4,1843.3,1.5805]
[1746343162721,2.3863,1843.4,1843.3,2.66534]
[1746343163223,3.2078,1843.6,1843.3,1.5805]
[1746343163427,3.2078,1843.6,1843.5,1.08473]
[1746343163623,3.2078,1843.6,1843.4,2.5275]
[1746343163814,3.2078,1843.6,1843.5,3.61523]
[1746343164325,6.8958,1843.6,1843.5,3.61523]
[1746343165330,3.2078,1843.6,1843.5,3.61523]
[1746343166421,6.75232,1843.9,1843.7,1.08457]
[1746343166617,6.75232,1843.9,1843.5,2.5305]
[1746343166618,7.90499456,1844.1,1843.6,1.608]
[1746343166825,7.90499456,1844.1,1843.9,1.08447]
[1746343167122,11.59299456,1844.1,1844.0,1.608]
[1746343167727,6.8958,1844.1,1844.0,2.69243]
[1746343167927,7.98017,1844.1,1844.0,1.608]
[1746343168316,6.8958,1844.1,1844.0,2.69243]
[1746343169231,3.688,1844.1,1844.0,2.69243]
[1746343169426,6.8958,1844.1,1844.0,2.69243]
[1746343169625,3.688,1844.1,1844.0,2.69243]
[1746343170128,3.63416,1844.3,1844.1,1.08433]
[1746343170328,3.63416,1844.3,1844.2,2.72971]
[1746343170526,2.5499,1844.3,1844.2,2.72971]
[1746343170725,6.81884,1844.4,1844.2,2.72971]
[1746343170920,1.08425,1844.3,1844.2,2.72971]
[1746343171421,10.50683,1844.4,1844.2,2.72971]
[1746343171823,10.50683,1844.4,1844.3,1.688]
[1746343174022,1.08437,1844.1,1843.9,5.40463]
[1746343174225,1.08436,1844.2,1844.0,1.08443]
[1746343174418,1.6925,1844.1,1843.9,6.98175]
[1746343174733,3.59187,1844.1,1844.0,1.5771]
[1746343174925,4.39747,1844.1,1844.0,1.5771]
[1746343175119,8.08547,1844.1,1844.0,1.5771]
[1746343179626,1.08443,1844.0,1843.9,0.8512]
[1746343179827,2.80053,1844.0,1843.9,0.8512]
[1746343180028,2.80053,1844.0,1843.9,1.93569]
[1746343180228,6.48853,1844.0,1843.9,3.59799]
[1746343180734,5.4041,1844.0,1843.9,3.59799]
[1746343181326,6.48853,1844.0,1843.9,3.59799]
[1746343182224,6.48853,1844.0,1843.9,2.5135]
[1746343185534,6.48853,1844.0,1843.7,1.08461]
[1746343185535,1.08455,1843.9,1843.7,1.08461]
[1746343185727,2.79005,1843.9,1843.7,2.77611]
[1746343186438,2.79005,1843.9,1843.8,1.08455]
[1746343186629,2.79005,1843.9,1843.8,2.66475]
[1746343187234,6.47805,1843.9,1843.8,2.66475]
[1746343190335,6.47805,1843.9,1843.8,1.5802]
[1746343190933,6.47805,1843.9,1843.8,2.66475]
[1746343192835,6.47805,1843.9,1843.8,1.5802]
[1746343193142,1.08455,1843.8,1843.7,1.08456]
[1746343193441,1.94115,1843.8,1843.7,1.08456]
[1746343193632,3.66355,1843.8,1843.7,2.77056]
[1746343194233,2.579,1843.8,1843.7,2.77056]
[1746343194634,2.579,1843.8,1843.7,3.58056]
[1746343196340,1.08452,1843.9,1843.8,1.08455]
[1746343196542,1.89822,1843.9,1843.8,2.71825]
[1746343196944,3.59032,1843.9,1843.8,2.71825]
[1746343197136,7.27832,1843.9,1843.8,2.71825]
[1746343198343,7.27832,1843.9,1843.8,1.6337]
[1746343199044,7.27832,1843.9,1843.8,2.71825]
[1746343200146,7.27832,1843.9,1843.8,1.6337]
[1746343200838,7.27166847,1843.9,1843.8,1.6337]
[1746343204541,10.47946847,1843.9,1843.8,2.71825]
[1746343205448,10.47946847,1843.9,1843.8,1.6337]
[1746343205649,7.27166847,1843.9,1843.8,2.71825]
[1746343205852,7.27166847,1843.9,1843.8,1.6337]
[1746343206452,10.47946847,1843.9,1843.8,1.6337]
[1746343213454,10.58793422,1843.9,1843.8,1.6337]
[1746343213657,8.89583422,1843.9,1843.8,1.6337]
[1746343214350,5.68803422,1843.9,1843.8,1.6337]
[1746343214552,8.89583422,1843.9,1843.8,1.6337]
[1746343215656,8.89583422,1843.9,1843.8,2.71825]
[1746343216154,8.89583422,1843.9,1843.8,1.6337]
[1746343216753,8.08213422,1843.9,1843.8,2.71825]
[1746343216955,3.79646575,1843.9,1843.8,7.71825]
[1746343217257,0.10846575,1843.9,1843.8,7.71825]
[1746343218343,0.10846575,1843.9,1843.8,2.71825]
[1746343218541,0.10846575,1843.9,1843.8,7.71825]
[1746343219650,0.10846575,1843.9,1843.8,2.71825]
[1746343241174,2.01729575,1843.9,1843.7,4.29236]
[1746343242172,1.08455,1843.8,1843.7,1.08459]
[1746343242366,1.19302163,1843.8,1843.7,1.08459]
[1746343242676,1.19302163,1843.8,1843.6,9.83088286]
[1746343242877,0.91137751,1843.7,1843.6,9.83088286]
[1746343243174,4.59937751,1843.7,1843.6,9.83088286]
[1746343243675,4.59937751,1843.7,1843.6,2.65453]
[1746343244775,4.59937751,1843.7,1843.6,1.08463]
[1746343245077,6.25607751,1843.7,1843.6,1.08463]
[1746343245875,6.25607751,1843.7,1843.6,2.70033]
[1746343257086,7.34068751,1843.7,1843.6,2.70033]
[1746343257587,6.25607751,1843.7,1843.6,2.70033]
[1746343257980,7.34068751,1843.7,1843.6,1.6157]
[1746343258488,7.34068751,1843.7,1843.6,2.70037]
[1746343260787,6.25607751,1843.7,1843.6,2.70037]
[1746343263190,7.34068751,1843.7,1843.6,2.70037]
[1746343263489,7.34068751,1843.7,1843.6,1.6157]
[1746343264087,7.34068751,1843.7,1843.2,1.08486]
[1746343264088,1.08481,1843.4,1843.2,1.08486]
[1746343264287,1.88564,1843.3,1843.2,1.5923]
[1746343264481,5.09344,1843.3,1843.2,1.5923]
[1746343265099,5.91924,1843.3,1843.2,5.2803]
[1746343265689,5.91924,1843.3,1843.2,6.3652]
[1746343266091,5.91924,1843.3,1843.2,2.6772]
[1746343266593,4.8344,1843.3,1843.1,9.04999286]
[1746343266786,1.72890694,1843.2,1843.1,9.04999286]
[1746343266988,1.72890694,1843.2,1843.1,10.67049286]
[1746343267386,1.72890694,1843.2,1843.1,3.49414]
[1746343269997,0.10850694,1843.2,1843.1,3.49414]
[1746343271092,6.94e-06,1843.2,1843.1,8.49414]
[1746343273797,6.94e-06,1843.2,1843.1,3.49414]
[1746343280502,6.94e-06,1843.2,1843.1,6.70194]
[1746343294818,2.48620694,1843.2,1843.1,6.70194]
[1746343295120,2.48620694,1843.2,1843.1,4.29274]
[1746343296117,3.57110694,1843.2,1843.1,4.29274]
[1746343296320,7.25910694,1843.2,1843.1,4.29274]
[1746343297222,2.48620694,1843.2,1843.1,4.29274]
[1746343300314,2.48620694,1843.2,1843.1,1.08494]
[1746343308722,2.48620694,1843.2,1843.1,2.77204]
[1746343309818,6.94e-06,1843.2,1843.1,2.77204]
[1746343321430,1.72730694,1843.2,1843.1,2.77204]
[1746343323242,2.51830694,1843.2,1843.1,2.77204]
[1746343325443,1.08496,1843.1,1843.0,6.8958]
[1746343325750,1.08496,1843.1,1843.0,7.98082]
[1746343325751,2.5349,1843.1,1843.0,7.98082]
[1746343326541,3.61986,1843.1,1843.0,7.98082]
[1746343327146,2.5349,1843.1,1843.0,7.98082]
[1746343328644,2.5349,1843.1,1843.0,9.60582]
[1746343333250,0.79100694,1843.2,1843.1,1.08496]
[1746343333450,1.58540694,1843.2,1843.1,1.08496]
[1746343333750,1.58540694,1843.2,1843.1,3.59116]
[1746343334052,6.94e-06,1843.2,1843.1,3.59116]
[1746343334246,1.08490694,1843.2,1843.1,3.59116]
[1746343334851,4.6977015,1843.2,1843.1,3.59116]
[1746343335043,6.3993015,1843.2,1843.1,3.59116]
[1746343335952,5.3144015,1843.2,1843.1,3.59116]
[1746343336250,3.6128015,1843.2,1843.1,4.39966]
[1746343336849,4.6977015,1843.2,1843.1,4.39966]
[1746343337153,4.6977015,1843.2,1843.1,3.60936]
[1746343337354,6.3993015,1843.2,1843.1,1.7159]
[1746343337551,1.08496,1843.1,1843.0,7.98077]
[1746343337756,3.58266,1843.1,1843.0,7.98077]
[1746343339455,3.58266,1843.1,1843.0,3.688]
[1746343339648,6.79046,1843.1,1843.0,3.688]
[1746343340154,1.08507,1843.0,1842.8,1.08511]
[1746343340357,1.08508,1842.9,1842.8,1.08511]
[1746343340558,3.60996,1843.0,1842.8,1.08511]
[1746343340755,1.6841,1842.9,1842.8,1.08511]
[1746343340956,6.94e-06,1843.2,1843.1,1.08496]
[1746343341154,0.85900694,1843.2,1843.1,1.08496]
[1746343341362,0.85900694,1843.2,1843.0,6.34018]
[1746343341363,6.11116422,1843.1,1843.0,6.34018]
[1746343343353,6.11116422,1843.1,1843.0,7.16788]
[1746343344955,6.176912,1843.2,1843.1,1.08496]
[1746343345162,6.176912,1843.2,1843.1,2.78436]
[1746343346960,7.261812,1843.2,1843.1,2.78436]
[1746343347760,3.63710694,1843.2,1843.1,2.78436]
[1746343348148,1.08496,1843.1,1843.0,4.77298]
[1746343348353,2.82197283,1843.1,1843.0,4.77298]
[1746343348555,1.73701283,1843.1,1843.0,4.77298]
[1746343348754,1.73701283,1843.1,1843.0,6.44528]
[1746343349059,0.10851283,1843.1,1843.0,6.44528]
[1746343361171,5.56416506,1843.3,1843.2,1.0849]
[1746343361369,7.25146506,1843.3,1843.2,1.0849]
[1746343361868,7.25146506,1843.3,1843.2,2.7324]
[1746343362171,7.25146506,1843.3,1843.2,6.4204]
[1746343362969,6.16660506,1843.3,1843.2,6.4204]
[1746343363671,7.25144506,1843.3,1843.2,5.3355]
[1746343363972,7.94331625,1843.3,1843.2,5.3355]
[1746343364570,7.94331625,1843.3,1843.2,6.4204]
[1746343366574,7.94331625,1843.3,1843.2,5.3355]
[1746343368371,9.73780304,1843.3,1843.2,5.3355]
[1746343369177,9.73780304,1843.3,1843.2,6.4204]
[1746343370777,9.73780304,1843.3,1843.2,5.3355]
[1746343371979,9.73780304,1843.3,1843.2,6.4204]
[1746343374187,8.65296304,1843.3,1843.2,6.4204]
[1746343374588,9.73780304,1843.3,1843.2,6.4204]
[1746343375584,8.65296304,1843.3,1843.2,6.4204]
[1746343376388,11.86076304,1843.3,1843.2,6.4204]
[1746343376887,12.94560304,1843.3,1843.2,6.4204]
[1746343377589,12.94560304,1843.3,1843.2,5.3355]
[1746343378293,12.94560304,1843.3,1843.2,6.4204]
[1746343378490,9.73780304,1843.3,1843.2,6.4204]
[1746343378793,8.65296304,1843.3,1843.2,6.4204]
[1746343379893,9.73780304,1843.3,1843.2,6.4204]
[1746343380894,9.73780304,1843.3,1843.2,5.3355]
[1746343381995,9.73780304,1843.3,1843.2,6.4204]
[1746343383394,9.73780304,1843.3,1843.2,5.3355]
[1746343384299,9.73780304,1843.3,1843.2,6.4204]
[1746343385300,8.65296304,1843.3,1843.2,6.4204]
[1746343386898,9.73780304,1843.3,1843.2,6.4204]
[1746343387500,9.73780304,1843.3,1843.2,5.3355]
[1746343388202,9.73780304,1843.3,1843.2,6.4204]
[1746343388699,4.31861119,1843.3,1843.2,6.4204]
[1746343388999,3.23377119,1843.3,1843.2,6.4204]
[1746343389402,4.31861119,1843.3,1843.2,6.4204]
[1746343389900,3.23377119,1843.3,1843.2,6.4204]
[1746343390402,4.31861119,1843.3,1843.2,6.4204]
[1746343390698,3.23377119,1843.3,1843.2,7.2038]
[1746343391203,4.31861119,1843.3,1843.2,7.2038]
[1746343391394,3.23377119,1843.3,1843.2,7.2038]
[1746343392307,3.62674,1843.3,1843.2,7.2038]
[1746343392802,3.62674,1843.3,1843.2,6.1189]
[1746343393606,3.62674,1843.3,1843.2,7.2038]
[1746343394597,2.5419,1843.3,1843.2,7.2038]
[1746343394804,6.1381665,1843.3,1843.2,7.2038]
[1746343396806,7.2230065,1843.3,1843.2,7.2038]
[1746343397699,7.2230065,1843.3,1843.2,6.1189]
[1746343397900,8.0274065,1843.3,1843.2,5.3355]
[1746343398209,12.8768065,1843.3,1843.2,5.3355]
[1746343401608,14.6515057,1843.3,1843.2,5.3355]
[1746343405611,13.5666657,1843.3,1843.2,6.4204]
[1746343405811,11.1206657,1843.3,1843.2,7.2558]
[1746343406213,12.2055057,1843.3,1843.2,6.1709]
[1746343407114,12.2055057,1843.3,1843.2,7.2558]
[1746343407513,12.2055057,1843.3,1843.2,6.1709]
[1746343407816,10.42965942,1843.3,1843.2,6.1709]
[1746343408712,12.03935942,1843.3,1843.2,6.1709]
[1746343412216,12.14786047,1843.3,1843.2,3.688]
[1746343413117,1.08501,1843.1,1842.9,6.02598]
[1746343414011,0.8053,1843.0,1842.9,6.02598]
[1746343414212,0.8053,1843.0,1842.9,9.71398]
[1746343416317,0.8053,1843.0,1842.9,6.50618]
[1746343417208,4.43468703,1843.0,1842.9,6.50618]
[1746343418316,5.51970703,1843.0,1842.9,3.688]
[1746343418619,7.21460703,1843.0,1842.9,3.688]
[1746343419218,1.08508,1842.9,1842.8,2.5883]
[1746343420120,1.08508,1842.9,1842.8,6.2763]
[1746343421121,4.71446703,1842.9,1842.8,6.2763]
[1746343422025,7.20116703,1842.9,1842.8,6.2763]
[1746343423027,7.20116703,1842.9,1842.8,3.688]
[1746343423324,10.40896703,1842.9,1842.8,3.688]
[1746343424123,1.08514,1842.8,1842.7,1.7259]
[1746343424317,3.63514,1842.8,1842.7,1.7259]
[1746343425925,1.08525,1842.6,1842.5,4.4732]
[1746343426126,1.08525,1842.6,1842.5,6.1991]
[1746343426625,3.53515,1842.6,1842.5,6.1991]
[1746343426922,3.53515,1842.6,1842.5,3.688]
[1746343427122,1.08531,1842.5,1842.4,0.8529]
[1746343427323,5.88541,1842.5,1842.4,0.8529]
[1746343427927,1.08537,1842.4,1842.3,8.74485286]
[1746343428223,3.53527,1842.4,1842.3,12.43285286]
[1746343428527,3.53527,1842.4,1842.3,5.2565]
[1746343429629,2.4499,1842.4,1842.3,5.2565]
[1746343429927,3.53527,1842.4,1842.3,5.2565]
[1746343430623,3.53527,1842.4,1842.3,3.688]
[1746343431524,3.53527,1842.4,1842.3,5.2689]
[1746343435127,3.2078,1842.5,1842.3,6.35433]
[1746343435128,4.29313,1842.5,1842.3,6.35433]
[1746343435428,4.40167816,1842.5,1842.4,1.6943]
[1746343435625,4.40167816,1842.5,1842.4,2.5259]
[1746343436129,4.40167816,1842.5,1842.4,6.2139]
[1746343438826,4.40167816,1842.5,1842.4,3.688]
[1746343439028,5.98197816,1842.5,1842.4,3.688]
[1746343439333,1.08547,1842.3,1842.0,4.2347]
[1746343439531,1.19405584,1842.2,1842.1,1.5623]
[1746343440029,0.10856584,1842.2,1842.1,1.5623]
[1746343440730,1.19405584,1842.2,1842.1,1.5623]
[1746343457442,0.10856584,1842.2,1842.1,1.5623]
[1746343457743,1.19405584,1842.2,1842.1,1.5623]
[1746343458938,2.82915584,1842.2,1842.1,1.5623]
[1746343461039,1.08555,1842.1,1842.0,0.8045]
[1746343461345,1.19412173,1842.1,1842.0,1.6496]
[1746343462145,1.19412173,1842.1,1842.0,5.3376]
[1746343462345,1.19412173,1842.1,1842.0,7.0123]
[1746343467550,2.02992173,1842.1,1842.0,7.0123]
[1746343474162,1.19412173,1842.1,1842.0,7.0123]
[1746343475157,2.05972173,1842.1,1842.0,7.0123]
[1746343479664,5.68910876,1842.1,1842.0,7.0123]
[1746343480272,7.34350876,1842.1,1842.0,7.0123]
[1746343480767,7.34350876,1842.1,1842.0,3.688]
[1746343482566,9.85054872,1842.1,1842.0,3.688]
[1746343485170,9.85054872,1842.1,1842.0,5.3601]
[1746343490275,10.13894632,1842.1,1842.0,5.3601]
[1746343490973,9.85054872,1842.1,1842.0,5.3601]
[1746343491165,10.1389523,1842.1,1842.0,5.3601]
[1746343491678,7.6189523,1842.1,1842.0,5.3601]
[1746343491976,7.61894993,1842.1,1842.0,6.1879]
[1746343492176,7.33054872,1842.1,1842.0,6.1879]
[1746343493077,7.61894985,1842.1,1842.0,6.1879]
[1746343493278,7.61894981,1842.1,1842.0,6.1879]
[1746343493475,9.23604981,1842.1,1842.0,6.1879]
[1746343493675,8.94764872,1842.1,1842.0,6.1879]
[1746343493878,9.23604999,1842.1,1842.0,6.1879]
[1746343494073,9.2360465,1842.1,1842.0,6.1879]
[1746343494272,8.94764872,1842.1,1842.0,6.1879]
[1746343494470,9.23604993,1842.1,1842.0,6.1879]
[1746343494674,9.23604648,1842.1,1842.0,6.1879]
[1746343495073,8.94764872,1842.1,1842.0,6.1879]
[1746343495275,9.23605089,1842.1,1842.0,6.1879]
[1746343495580,9.2360551,1842.1,1842.0,6.1879]
[1746343495880,9.23605563,1842.1,1842.0,6.1879]
[1746343496178,8.94764872,1842.1,1842.0,6.1879]
[1746343496378,9.23605584,1842.1,1842.0,6.1879]
[1746343496680,9.23605583,1842.1,1842.0,6.1879]
[1746343496878,8.94764872,1842.1,1842.0,6.1879]
[1746343497575,9.23607671,1842.1,1842.0,6.1879]
[1746343497782,9.23609018,1842.1,1842.0,6.1879]
[1746343498881,9.23608772,1842.1,1842.0,6.1879]
[1746343499181,9.23607412,1842.1,1842.0,6.1879]
[1746343499381,9.23607411,1842.1,1842.0,6.1879]
[1746343499583,9.23606846,1842.1,1842.0,6.1879]
[1746343499777,7.33054872,1842.1,1842.0,6.1879]
[1746343499982,7.61896829,1842.1,1842.0,6.1879]
[1746343500179,7.33054872,1842.1,1842.0,6.1879]
[1746343500386,7.61895029,1842.1,1842.0,6.1879]
[1746343500682,7.61894371,1842.1,1842.0,3.688]
[1746343500882,8.95974872,1842.1,1842.0,3.688]
[1746343501185,1.08567,1841.9,1841.8,1.5791]
[1746343501381,1.19425352,1841.9,1841.8,1.5791]
[1746343501580,1.48265585,1841.9,1841.8,1.5791]
[1746343501773,1.19425352,1841.9,1841.8,1.5791]
[1746343501979,1.48267793,1841.9,1841.8,1.5791]
[1746343502178,1.19425352,1841.9,1841.8,5.2671]
[1746343502381,1.48265072,1841.9,1841.8,5.2671]
[1746343502574,1.48271929,1841.9,1841.8,5.2671]
[1746343502784,1.48271926,1841.9,1841.8,5.2671]
[1746343502985,1.48274533,1841.9,1841.8,5.2671]
[1746343503187,1.48274536,1841.9,1841.8,5.2671]
[1746343503386,1.48274545,1841.9,1841.8,5.2671]
[1746343503588,3.19974544,1841.9,1841.8,5.2671]
[1746343504290,3.19974273,1841.9,1841.8,5.2671]
[1746343504486,3.19974314,1841.9,1841.8,5.2671]
[1746343504691,3.19977871,1841.9,1841.8,5.2671]
[1746343504884,3.19978142,1841.9,1841.8,5.2671]
[1746343505190,6.53837189,1841.9,1841.8,5.2671]
[1746343505388,6.82689346,1841.9,1841.8,5.2671]
[1746343505578,6.82689351,1841.9,1841.8,5.2671]
[1746343505782,6.53837189,1841.9,1841.8,5.2671]
[1746343505986,6.82683627,1841.9,1841.8,5.2671]
[1746343506188,6.82683739,1841.9,1841.8,5.2671]
[1746343506388,6.53837189,1841.9,1841.8,5.2671]
[1746343506684,6.82695784,1841.9,1841.8,5.2671]
[1746343507091,6.82695784,1841.9,1841.8,1.5791]
[1746343507391,6.82692108,1841.9,1841.8,1.5791]
[1746343508694,7.51934214,1841.9,1841.8,1.5791]
[1746343509095,7.51428319,1841.9,1841.8,1.5791]
[1746343510894,7.51428185,1841.9,1841.8,1.5791]
[1746343511196,7.51428195,1841.9,1841.8,1.5791]
[1746343511396,7.22577432,1841.9,1841.8,1.5791]
[1746343511589,7.51426222,1841.9,1841.8,1.5791]
[1746343512495,7.5142563,1841.9,1841.8,1.5791]
[1746343512884,7.22577432,1841.9,1841.8,1.5791]
[1746343513088,5.50877432,1841.9,1841.8,5.2671]
[1746343522001,4.81635326,1841.9,1841.8,5.2671]
[1746343523401,3.73570189,1841.9,1841.8,6.35283]
[1746343523901,4.02419511,1841.9,1841.8,6.35283]
[1746343525503,4.02445291,1841.9,1841.8,6.35283]
[1746343527301,3.73570189,1841.9,1841.8,6.35283]
[1746343527604,0.3972655,1841.9,1841.8,6.35283]
[1746343528901,0.39724675,1841.9,1841.8,6.35283]
[1746343529102,0.10858352,1841.9,1841.8,6.35283]
[1746343531090,0.39719108,1841.9,1841.8,6.35283]
[1746343533103,0.10858352,1841.9,1841.8,6.35283]
[1746343538406,0.10858352,1841.9,1841.8,9.56063]
[1746343539509,0.10858352,1841.9,1841.8,14.56063]
[1746343541312,0.10858352,1841.9,1841.8,9.56063]
[1746343542311,3.52e-06,1841.9,1841.8,9.56063]
[1746343542710,1.45e-06,1842.1,1842.0,1.08561]
[1746343542916,1.45e-06,1842.1,1842.0,7.73041]
[1746343543209,1.45e-06,1842.1,1842.0,11.41841]
[1746343543412,1.45e-06,1842.1,1842.0,13.10251]
[1746343549007,1.45e-06,1842.1,1842.0,18.10251]
[1746343550213,1.45e-06,1842.1,1842.0,13.10251]
[1746343566223,1.45e-06,1842.2,1842.1,1.08555]
[1746343566424,1.45e-06,1842.2,1842.1,2.71905]
[1746343566624,1.68560145,1842.2,1842.1,2.71905]
[1746343568827,0.51153,1842.2,1842.1,2.71905]
[1746343569027,0.8176,1842.3,1842.2,1.08549]
[1746343569225,0.8176,1842.3,1842.2,5.92679]
[1746343570228,0.8176,1842.3,1842.2,7.98129]
[1746343572620,1.6294,1842.3,1842.2,7.98129]
[1746343578431,1.6294,1842.3,1842.2,9.62259]
[1746343579736,0.8176,1842.3,1842.2,9.62259]
[1746343579930,0.8176,1842.3,1842.2,10.44149]
[1746343586345,0.8176,1842.3,1842.2,17.6837144]
[1746343586534,0.8176,1842.3,1842.2,21.1177144]
[1746343586736,0.7907,1842.6,1842.5,1.08531]
[1746343586931,3.1932,1842.6,1842.5,1.08531]
[1746343587142,3.1932,1842.6,1842.5,4.77331]
[1746343593246,4.27845,1842.6,1842.5,4.77331]
[1746343593546,3.1932,1842.6,1842.5,4.77331]
[1746343593854,4.27845,1842.6,1842.5,4.77331]
[1746343594049,4.27845,1842.6,1842.5,3.688]
[1746343594351,3.1932,1842.6,1842.5,4.77331]
[1746343594550,4.27845,1842.6,1842.5,3.688]
[1746343596046,8.59769074,1842.6,1842.5,3.688]
[1746343602554,11.80549074,1842.6,1842.5,3.688]
[1746343603155,1.08541,1842.4,1842.2,10.22115]
[1746343603454,2.68683,1842.3,1842.2,8.2984]
[1746343603656,2.96527572,1842.3,1842.2,8.2984]
[1746343603848,2.96527572,1842.3,1842.2,6.6418]
[1746343604054,1.08549,1842.2,1842.1,18.09644127]
[1746343604253,3.03513572,1842.2,1842.1,19.18199127]
[1746343604454,3.03513572,1842.2,1842.1,8.3277744]
[1746343605253,3.03513572,1842.2,1842.1,9.9739744]
[1746343605856,3.03495761,1842.2,1842.1,9.9739744]
[1746343606556,1.94946761,1842.2,1842.1,9.9739744]
[1746343606961,1.6712,1842.2,1842.1,9.9739744]
[1746343607158,1.94938833,1842.2,1842.1,9.9739744]
[1746343607859,3.03487833,1842.2,1842.1,9.9739744]
[1746343608051,2.75669,1842.2,1842.1,9.9739744]